bitfinex/quotes_ETHUSD_20240825
["timestamp","ask_amount","ask_price","bid_price","bid_amount"]
[1724628821142,6.61062,2769.6,2769.5,0.1330407]
[1724628821503,10.22124,2769.6,2769.5,0.1330407]
[1724628822627,10.77124,2769.6,2769.5,0.1330407]
[1724628822939,12.448238,2769.6,2769.5,0.1330407]
[1724628826059,11.898238,2769.6,2769.5,0.1330407]
[1724628826246,6.61062,2769.6,2769.5,0.1330407]
[1724628826679,3.0,2769.6,2769.5,0.1330407]
[1724628827177,3.0,2769.6,2769.5,2.3862407]
[1724628827562,3.61062,2769.6,2769.5,2.3862407]
[1724628827759,6.61062,2769.6,2769.5,2.3862407]
[1724628828183,3.0,2769.6,2769.5,2.3862407]
[1724628828390,3.0,2769.7,2769.5,2.3862407]
[1724628829179,7.22993739,2770.1,2769.5,2.62486477]
[1724628829345,10.84002739,2770.1,2769.5,2.62486477]
[1724628829682,3.61013,2770.0,2769.5,2.62486477]
[1724628829887,3.61024,2769.9,2769.5,2.3862407]
[1724628830043,3.61058,2769.7,2769.5,2.3862407]
[1724628830360,3.61058,2769.7,2769.5,0.1330407]
[1724628831241,3.61062,2769.6,2769.5,0.1330407]
[1724628835147,3.61039,2769.8,2769.5,0.1330407]
[1724628835377,3.61051,2769.7,2769.5,0.1330407]
[1724628835539,3.61013,2770.0,2769.5,0.1330407]
[1724628835908,3.0,2769.9,2769.5,0.1330407]
[1724628836670,6.61024,2769.9,2769.5,0.1330407]
[1724628836900,7.99427174,2769.9,2769.5,0.1330407]
[1724628837105,4.38403174,2769.9,2769.5,0.1330407]
[1724628837249,7.99427174,2769.9,2769.5,0.1330407]
[1724628837954,3.61039,2769.8,2769.5,0.1330407]
[1724628838847,3.0,2769.9,2769.5,0.1330407]
[1724628839885,4.02300774,2769.9,2769.5,0.1330407]
[1724628840090,3.61053,2769.7,2769.5,0.1330407]
[1724628842308,3.0,2770.0,2769.6,2.3747]
[1724628842508,3.0,2770.0,2769.5,0.1330407]
[1724628842715,3.61032,2769.9,2769.5,0.1330407]
[1724628843002,0.661032,2769.8,2769.5,0.1330407]
[1724628843202,3.0,2770.0,2769.5,0.1330407]
[1724628843763,3.61032,2769.9,2769.5,0.1330407]
[1724628844568,3.6104,2769.8,2769.5,0.1330407]
[1724628851433,6.61013,2770.0,2769.5,0.1330407]
[1724628851434,3.61024,2769.9,2769.5,0.1330407]
[1724628852561,0.55240953,2770.7,2769.5,0.1330407]
[1724628852562,0.360947,2770.5,2769.6,2.4022]
[1724628852712,0.360947,2770.5,2769.9,3.61016]
[1724628853140,3.60959,2770.4,2769.7,3.61038]
[1724628853288,3.60935,2770.6,2769.9,3.61015]
[1724628853635,3.6091,2770.8,2770.0,2.2531]
[1724628853818,0.36091,2770.7,2770.1,3.60995]
[1724628854201,3.97014,2770.7,2770.1,7.21983]
[1724628854532,0.36091,2770.7,2770.1,3.60988]
[1724628854739,3.97011,2770.7,2770.1,3.60988]
[1724628854892,3.97011,2770.7,2770.0,2.2531]
[1724628854893,3.60935,2770.6,2770.0,2.2531]
[1724628855101,3.0,2770.5,2770.0,2.2531]
[1724628855741,6.60945,2770.5,2770.0,2.2531]
[1724628856043,3.0,2770.5,2770.0,2.2531]
[1724628856358,3.60993,2770.2,2769.6,2.2531]
[1724628858213,3.60963,2770.4,2769.6,2.2531]
[1724628858439,3.0,2770.5,2769.6,2.2531]
[1724628858637,3.0,2770.5,2769.8,3.61027]
[1724628858948,3.0,2770.5,2769.9,5.86972]
[1724628859511,3.0,2770.5,2770.0,3.6101]
[1724628859935,3.0,2770.5,2770.1,3.60989]
[1724628860138,3.0,2770.7,2770.2,3.60982]
[1724628860449,3.60942,2770.6,2770.0,3.61]
[1724628860649,3.0,2770.5,2770.0,3.61]
[1724628861054,6.60946,2770.5,2769.9,2.2596]
[1724628861237,3.60967,2770.4,2769.9,2.2596]
[1724628861554,3.60984,2770.3,2769.6,2.4257]
[1724628861755,8.241615,2770.3,2769.7,3.61048]
[1724628862051,4.631775,2770.3,2769.7,3.61048]
[1724628862450,4.631755,2770.3,2769.6,6.03631]
[1724628862690,3.60997,2770.2,2769.6,2.4257]
[1724628862886,4.631755,2770.3,2769.6,2.4257]
[1724628863187,4.631755,2770.3,2769.7,3.61048]
[1724628863591,4.631755,2770.3,2769.7,7.22089]
[1724628863766,4.631755,2770.3,2769.6,2.4257]
[1724628863965,4.631755,2770.3,2769.7,3.61047]
[1724628864152,4.631755,2770.3,2769.7,3.61038]
[1724628864153,3.60982,2770.3,2769.7,3.61038]
[1724628867097,3.60982,2770.3,2769.7,7.22076]
[1724628867300,3.60982,2770.3,2769.7,3.61038]
[1724628867899,3.60985,2770.2,2769.7,3.61038]
[1724628870399,3.60985,2770.2,2769.6,2.4257]
[1724628870586,2.4074,2770.1,2769.5,0.1330407]
[1724628870788,3.61026,2769.9,2769.5,0.1330407]
[1724628874620,7.22007,2770.1,2769.5,0.1330407]
[1724628875019,3.61014,2770.0,2769.5,0.1330407]
[1724628879803,3.60999,2770.1,2769.5,3.7437707]
[1724628880145,4.950609,2770.1,2769.5,0.1330407]
[1724628880321,3.61031,2769.9,2769.5,0.1330407]
[1724628881124,7.950649,2770.1,2769.5,3.7437107]
[1724628881324,10.22011,2770.1,2769.5,3.7437007]
[1724628881545,3.61012,2770.0,2769.5,0.1330407]
[1724628882241,6.61003,2770.1,2769.5,0.1330407]
[1724628883240,6.61003,2770.1,2769.5,3.7437807]
[1724628883241,3.0,2770.1,2769.5,3.7437807]
[1724628883516,3.60952,2770.5,2769.8,3.61036]
[1724628883517,10.21909,2770.5,2769.8,3.61036]
[1724628883709,3.60967,2770.4,2769.8,3.61036]
[1724628883927,3.0,2770.3,2769.8,3.61036]
[1724628884811,6.60973,2770.3,2769.6,5.90847]
[1724628885014,10.21954,2770.3,2769.6,5.90847]
[1724628885215,6.60973,2770.3,2769.6,5.90847]
[1724628885443,6.60973,2770.3,2769.6,9.51902]
[1724628885645,6.60973,2770.3,2769.6,10.48422607]
[1724628885857,3.60985,2770.2,2769.6,10.48420607]
[1724628886060,3.0,2770.3,2769.7,3.61047]
[1724628886523,6.60973,2770.3,2769.7,3.61047]
[1724628886834,6.60973,2770.3,2769.8,3.61032]
[1724628887035,6.60973,2770.3,2769.7,3.61047]
[1724628888239,6.60973,2770.3,2769.8,3.61036]
[1724628888627,3.0,2770.3,2770.0,3.61002]
[1724628888829,3.0,2770.5,2770.1,2.3466]
[1724628889371,6.60934,2770.6,2770.1,2.3466]
[1724628890131,6.60934,2770.6,2769.8,9.65041]
[1724628890132,7.21902,2770.5,2769.8,9.65041]
[1724628890331,3.50570573,2770.4,2769.8,2.4298]
[1724628890564,3.60986,2770.2,2769.8,2.4298]
[1724628891604,4.11536573,2770.4,2769.8,2.4298]
[1724628892659,3.60977,2770.3,2769.8,2.4298]
[1724628892841,3.60977,2770.3,2769.8,6.04016]
[1724628893043,3.60966,2770.4,2769.8,7.00523]
[1724628893243,3.60966,2770.4,2769.9,3.6102]
[1724628893440,3.60887,2771.0,2770.5,3.60945]
[1724628893704,2.464,2771.3,2770.5,3.60945]
[1724628893860,3.60833,2771.4,2770.7,3.60918]
[1724628894069,3.60833,2771.4,2770.8,2.2806]
[1724628894446,3.60846,2771.3,2770.8,2.2806]
[1724628895380,3.60833,2771.4,2770.8,2.2806]
[1724628895581,3.0,2771.3,2770.9,3.60892]
[1724628895798,3.0,2771.5,2771.0,3.6088]
[1724628896006,6.60815,2771.5,2770.8,5.88966]
[1724628896307,6.60815,2771.5,2770.8,6.839556]
[1724628896500,6.60815,2771.5,2770.9,3.60893]
[1724628897374,6.60815,2771.5,2770.9,3.68110065]
[1724628897576,3.0,2771.5,2770.9,3.68110065]
[1724628897811,3.0,2771.6,2771.0,2.4446]
[1724628898309,3.0,2771.6,2771.0,6.05338]
[1724628898986,6.60802,2771.6,2771.0,6.05338]
[1724628899891,6.60802,2771.6,2771.0,2.4446]
[1724628901493,3.60817,2771.5,2771.0,2.4446]
[1724628901713,6.505579,2771.6,2770.6,2.4779]
[1724628901930,3.02368165,2771.5,2770.6,2.4779]
[1724628902085,3.02368165,2771.5,2769.8,0.96507]
[1724628902086,3.60917,2770.8,2770.3,2.4779]
[1724628903517,3.60936,2770.6,2770.1,2.4779]
[1724628903995,3.0,2770.5,2770.1,2.4779]
[1724628904370,6.60946,2770.5,2770.1,2.4779]
[1724628904570,6.60946,2770.5,2769.8,6.08817]
[1724628904977,3.60958,2770.4,2769.8,6.08817]
[1724628905176,3.60958,2770.4,2769.8,7.058045]
[1724628905602,3.60958,2770.4,2769.8,3.447775]
[1724628905777,3.60958,2770.4,2769.8,7.058115]
[1724628906368,3.60958,2770.4,2769.8,2.4779]
[1724628907279,3.60958,2770.4,2769.8,6.08826]
[1724628907670,3.0,2770.5,2769.8,6.08826]
[1724628908773,3.0,2770.5,2769.9,3.61021]
[1724628909282,3.0,2770.5,2770.0,2.467]
[1724628909686,6.60945,2770.5,2770.0,2.467]
[1724628909870,7.631331,2770.5,2770.0,2.467]
[1724628910579,3.60959,2770.4,2770.0,2.467]
[1724628911403,3.60959,2770.4,2769.6,5.90599]
[1724628911404,5.90749,2770.4,2769.6,5.90599]
[1724628911569,3.61012,2770.0,2769.6,2.2954]
[1724628914107,3.60993,2770.2,2769.6,2.2954]
[1724628914409,3.60966,2770.4,2769.6,6.50985107]
[1724628914614,6.60979,2770.3,2769.6,6.50985107]
[1724628915503,5.86577,2770.2,2769.6,2.2954]
[1724628916576,9.47572,2770.2,2769.6,2.2954]
[1724628916975,5.86577,2770.2,2769.6,2.2954]
[1724628917415,3.61006,2770.1,2769.6,2.2954]
[1724628917574,5.86577,2770.2,2769.6,2.2954]
[1724628918113,3.0,2770.3,2769.6,2.2954]
[1724628918114,6.60973,2770.3,2769.6,6.87100407]
[1724628918315,3.0,2770.3,2769.6,6.87100407]
[1724628918505,3.60986,2770.2,2769.6,5.90601]
[1724628919285,7.2198,2770.2,2769.6,5.90601]
[1724628919485,3.61021,2770.0,2769.5,0.1330407]
[1724628920017,3.61047,2769.8,2769.5,0.1330407]
[1724628920191,4.332534,2769.8,2769.5,0.1330407]
[1724628920883,7.942994,2769.8,2769.5,0.1330407]
[1724628921083,4.332524,2769.8,2769.5,0.1330407]
[1724628921722,3.61062,2769.6,2769.5,0.1330407]
[1724628923524,9.52304,2769.6,2769.5,0.1330407]
[1724628923726,7.6351304,2769.6,2769.5,0.1330407]
[1724628927333,3.0,2769.6,2769.5,0.1330407]
[1724628928431,3.0,2769.7,2769.5,0.1330407]
[1724628928636,6.61052,2769.7,2769.5,0.1330407]
[1724628929022,3.61062,2769.6,2769.5,0.1330407]
[1724628929239,6.61062,2769.6,2769.5,0.1330407]
[1724628933244,3.61031,2769.9,2769.5,0.1330407]
[1724628933404,7.22066,2769.9,2769.5,0.1330407]
[1724628933606,3.61031,2769.9,2769.5,0.1330407]
[1724628933845,3.6105,2769.7,2769.5,0.1330407]
[1724628935542,3.61031,2769.9,2769.5,0.1330407]
[1724628935708,3.61044,2769.8,2769.5,0.1330407]
[1724628936104,3.61031,2769.9,2769.5,0.1330407]
[1724628936306,10.22011,2770.1,2769.6,2.4184]
[1724628936538,3.61013,2770.0,2769.6,2.4184]
[1724628936740,3.61024,2769.9,2769.6,2.4184]
[1724628937245,7.22056,2769.9,2769.6,2.4184]
[1724628937463,3.61024,2769.9,2769.6,2.4184]
[1724628938103,7.2206,2769.9,2769.5,0.1330407]
[1724628938301,3.61024,2769.9,2769.5,0.1330407]
[1724628938460,7.22056,2769.9,2769.5,0.1330407]
[1724628938661,3.61024,2769.9,2769.5,0.1330407]
[1724628939804,3.61038,2769.8,2769.5,0.1330407]
[1724628940002,3.61024,2769.9,2769.5,0.1330407]
[1724628941398,3.61041,2769.8,2769.5,0.1330407]
[1724628942694,3.61024,2769.9,2769.5,0.1330407]
[1724628943269,6.61005,2770.1,2769.6,2.4184]
[1724628943270,10.22012,2770.1,2769.6,2.4184]
[1724628944189,6.61005,2770.1,2769.6,2.4184]
[1724628944391,2.3967,2770.7,2769.6,2.4184]
[1724628944732,3.60986,2770.2,2769.6,2.4184]
[1724628945012,0.600582,2770.6,2769.6,2.4184]
[1724628945013,3.61001,2770.1,2769.6,2.4184]
[1724628945366,3.61024,2769.9,2769.6,2.4184]
[1724628947200,7.22058,2769.9,2769.5,0.1330407]
[1724628947499,3.61024,2769.9,2769.5,0.1330407]
[1724628948063,7.22057,2769.9,2769.5,0.1330407]
[1724628948469,3.61038,2769.8,2769.5,0.1330407]
[1724628948901,3.61053,2769.7,2769.5,0.1330407]
[1724628949300,0.722062,2769.8,2769.5,0.1330407]
[1724628949504,3.61024,2769.9,2769.5,0.1330407]
[1724628949705,3.61059,2769.7,2769.5,0.1330407]
[1724628952002,3.61062,2769.6,2769.5,0.1330407]
[1724628952205,10.22124,2769.6,2769.5,0.1330407]
[1724628952788,12.64094,2769.6,2769.5,0.1330407]
[1724628953070,14.56845817,2769.6,2769.5,0.1330407]
[1724628954068,14.56845817,2769.6,2769.5,7e-07]
[1724628954069,21.78969817,2769.6,2769.5,7e-07]
[1724628954268,23.9316898,2769.6,2769.5,7e-07]
[1724628955393,9.64382,2768.5,2768.4,0.01]
[1724628955595,10.608202,2768.5,2768.4,0.01]
[1724628955910,13.608202,2768.5,2768.4,0.01]
[1724628957025,11.188502,2768.5,2768.4,0.01]
[1724628957184,6.61206,2768.5,2768.4,0.01]
[1724628957384,6.51206,2768.5,2768.4,0.01]
[1724628958820,10.12412,2768.5,2768.4,0.01]
[1724628959026,12.54382,2768.5,2768.4,0.01]
[1724628959823,8.93176,2768.5,2768.4,0.01]
[1724628960050,6.51206,2768.5,2768.4,0.01]
[1724628960254,3.0,2768.5,2768.4,0.01]
[1724628961038,6.61206,2768.5,2768.4,0.01]
[1724628961693,3.0,2768.5,2768.4,0.01]
[1724628961908,3.61202,2768.6,2768.4,0.01]
[1724628963019,3.61206,2768.5,2768.4,0.01]
[1724628963621,3.61202,2768.6,2768.4,0.01]
[1724628963784,6.61172,2768.8,2768.4,0.01]
[1724628963992,6.61182,2768.7,2768.4,0.01]
[1724628964291,14.68140739,2769.0,2768.5,2.4956]
[1724628964495,14.68140739,2769.0,2768.6,0.25056]
[1724628964824,14.68140739,2769.0,2768.5,2.4956]
[1724628964825,3.61168,2768.8,2768.5,2.4956]
[1724628965998,14.68140739,2769.0,2768.5,2.4956]
[1724628966224,3.61164,2768.9,2768.4,0.01]
[1724628966598,3.61155,2768.9,2768.4,0.01]
[1724628967487,3.61196,2768.6,2768.4,0.01]
[1724628967693,3.61996739,2769.0,2768.4,0.01]
[1724628968000,4.64308613,2769.0,2768.4,0.01]
[1724628968202,3.61191,2768.7,2768.4,0.01]
[1724628969527,7.22382,2768.7,2768.4,0.01]
[1724628969728,7.22381,2768.7,2768.4,0.01]
[1724628970131,3.61206,2768.5,2768.4,0.01]
[1724628970292,7.22381,2768.7,2768.4,0.01]
[1724628970718,3.61194,2768.6,2768.4,0.01]
[1724628971296,3.6119,2768.7,2768.4,0.01]
[1724628971526,3.61159,2768.9,2768.4,2.3558]
[1724628971732,6.61169,2768.8,2768.4,2.3558]
[1724628971937,3.0,2768.8,2768.4,6.514811]
[1724628972154,3.0,2768.9,2768.4,6.514811]
[1724628972436,3.0,2768.9,2768.4,2.3058]
[1724628972437,3.61167,2768.8,2768.4,2.3058]
[1724628973709,6.61154,2768.9,2768.4,2.3058]
[1724628973919,3.61129,2769.1,2768.5,3.61205]
[1724628974125,3.61129,2769.1,2768.5,3.61198]
[1724628974329,3.61129,2769.1,2768.6,0.591778]
[1724628975118,3.61141,2769.0,2768.6,0.591778]
[1724628975437,3.61141,2769.0,2768.4,2.3058]
[1724628975438,3.61141,2769.0,2768.4,5.91794]
[1724628975618,3.61129,2769.1,2768.4,5.91794]
[1724628977144,3.61129,2769.1,2768.5,3.61205]
[1724628977762,7.22267,2769.1,2768.5,3.61205]
[1724628977957,3.61129,2769.1,2768.5,4.565059]
[1724628978160,7.22269,2769.1,2768.5,4.565059]
[1724628978806,3.61129,2769.1,2768.5,4.565059]
[1724628979951,3.61129,2769.1,2768.6,2.2586]
[1724628984067,3.0,2769.4,2768.6,2.2586]
[1724628984279,3.0,2769.4,2768.5,0.953009]
[1724628984280,7.45,2769.5,2769.0,2.3875]
[1724628984916,7.45,2769.5,2769.0,5.99889]
[1724628985262,3.6109,2769.4,2769.0,2.3875]
[1724628985659,11.06078,2769.5,2769.0,2.3875]
[1724628985985,4.24939198,2769.4,2769.0,2.3875]
[1724628986321,4.24939198,2769.4,2768.9,3.61153]
[1724628986624,3.61093,2769.4,2768.9,3.61153]
[1724628988422,3.61093,2769.4,2768.8,2.3875]
[1724628988622,3.61093,2769.4,2768.8,5.99915]
[1724628988841,3.61069,2769.6,2768.9,3.61151]
[1724628990436,4.209942,2769.5,2768.8,2.3875]
[1724628990619,3.6111,2769.3,2768.7,3.61172]
[1724628990820,3.6113,2769.1,2768.5,6.07116]
[1724628991221,9.64272,2769.3,2768.5,6.07116]
[1724628991439,9.64273,2769.3,2768.6,3.61185]
[1724628991635,3.61115,2769.2,2768.6,4.580151]
[1724628991957,3.61131,2769.1,2768.6,0.968301]
[1724628992264,3.61131,2769.1,2768.5,6.07116]
[1724628993122,3.61153,2769.0,2768.3,5.95015]
[1724628993324,3.61157,2768.9,2768.3,5.95015]
[1724628993631,3.61157,2768.9,2768.3,5.95014]
[1724628993821,3.61131,2769.1,2768.4,3.61209]
[1724628994021,3.61106,2769.3,2768.6,2.3379]
[1724628994263,3.0,2769.2,2768.6,5.94975]
[1724628994467,3.0,2769.2,2768.7,3.61176]
[1724628994766,7.45,2769.5,2768.7,2.4829]
[1724628994935,7.45,2769.5,2769.1,6.01368]
[1724628995136,3.61058,2769.7,2769.1,6.01368]
[1724628995330,3.61058,2769.7,2769.1,2.4025]
[1724628995331,3.61071,2769.6,2769.1,2.4025]
[1724628995538,0.950665,2769.7,2769.1,2.4025]
[1724628995732,3.02368165,2769.8,2768.6,2.4025]
[1724628995733,3.6111,2769.3,2768.6,2.4025]
[1724628995957,3.61099,2769.4,2768.7,3.61169]
[1724628996156,3.61099,2769.4,2768.7,7.22341]
[1724628996368,3.61068,2769.6,2768.9,3.61141]
[1724628996573,6.61044,2769.8,2769.1,3.61118]
[1724628996743,3.0,2769.7,2769.1,3.61118]
[1724628997138,3.0,2769.7,2769.1,7.22237]
[1724628997337,3.0,2769.7,2769.1,3.61118]
[1724628998347,6.61052,2769.7,2769.1,3.61118]
[1724628998535,3.0,2769.7,2769.1,3.61118]
[1724628998736,2.2856,2769.9,2769.3,3.61094]
[1724628998956,3.0,2769.9,2769.4,2.3592]
[1724628999167,6.61028,2769.9,2769.4,2.3592]
[1724628999968,3.61037,2769.8,2769.4,2.3592]
[1724629000168,4.632423,2769.8,2769.1,5.97041]
[1724629000468,4.632423,2769.8,2769.2,3.61107]
[1724629000655,3.61037,2769.8,2769.2,3.61107]
[1724629001233,3.0,2769.9,2769.3,3.61099]
[1724629001558,7.45,2770.1,2769.3,3.61099]
[1724629001559,7.45,2770.1,2769.4,5.90891]
[1724629001773,3.61001,2770.1,2769.4,2.2981]
[1724629003133,7.21984,2770.2,2769.6,3.61061]
[1724629003363,3.60998,2770.1,2769.6,3.61061]
[1724629003881,3.0,2770.3,2769.6,3.61061]
[1724629003882,3.0,2770.3,2769.7,3.61048]
[1724629004038,3.0,2770.4,2769.9,3.61022]
[1724629005054,3.0,2770.6,2769.9,3.61022]
[1724629005238,5.3956,2770.7,2770.0,2.4295]
[1724629005438,1.843472,2770.6,2770.0,2.4295]
[1724629005734,3.60955,2770.5,2770.0,2.4295]
[1724629005943,6.60959,2770.4,2769.7,2.4295]
[1724629006181,3.6101,2770.1,2769.4,2.4295]
[1724629006398,3.6101,2770.1,2769.4,6.04036]
[1724629006672,3.6101,2770.1,2769.5,3.61074]
[1724629006886,3.60975,2770.3,2769.6,3.61057]
[1724629007051,3.60954,2770.5,2769.7,3.61041]
[1724629007579,3.0,2770.4,2769.7,3.61041]
[1724629008144,6.60959,2770.4,2769.7,3.61041]
[1724629009581,3.60974,2770.3,2769.7,3.61041]
[1724629011679,3.0,2770.4,2769.9,2.3953]
[1724629011892,3.60954,2770.5,2769.9,3.356907]
[1724629012183,3.60954,2770.5,2769.9,6.967117]
[1724629012690,3.60967,2770.4,2769.9,3.356907]
[1724629012987,3.60954,2770.5,2769.7,6.00569]
[1724629012988,5.92934,2770.5,2769.7,6.00569]
[1724629013144,3.60971,2770.3,2769.7,6.00569]
[1724629013956,9.53887,2770.5,2769.8,3.61036]
[1724629014163,3.60953,2770.5,2769.8,4.571965]
[1724629014577,3.60958,2770.4,2769.8,0.961605]
[1724629014978,7.21984,2770.2,2769.7,2.3953]
[1724629015149,3.60988,2770.2,2769.7,2.3953]
[1724629016191,2.3198,2770.2,2769.3,3.61101]
[1724629016394,2.3198,2770.2,2769.1,6.00651]
[1724629016548,3.61033,2769.9,2769.3,3.611]
[1724629017557,3.61033,2769.9,2769.1,6.00647]
[1724629017751,3.61033,2769.9,2769.3,3.61098]
[1724629020468,3.61033,2769.9,2769.3,7.2219]
[1724629021103,3.60985,2770.2,2769.6,2.3875]
[1724629021259,3.0,2770.1,2769.6,2.3875]
[1724629021461,6.60998,2770.1,2769.6,2.3875]
[1724629021999,7.45,2770.5,2769.8,2.3622]
[1724629022178,7.45,2770.5,2770.1,3.60994]
[1724629022510,3.60927,2770.7,2770.1,3.60994]
[1724629023074,3.60933,2770.6,2770.1,3.60994]
[1724629023580,3.60927,2770.7,2770.1,3.60988]
[1724629024095,4.631096,2770.7,2770.1,3.60988]
[1724629024497,4.631096,2770.7,2770.2,2.4544]
[1724629024661,6.60899,2770.9,2770.2,2.4544]
[1724629024862,3.0,2770.9,2770.4,3.60957]
[1724629025061,7.21753,2771.1,2770.4,3.60957]
[1724629025062,3.0,2771.0,2770.4,3.60957]
[1724629025361,3.60873,2771.1,2770.5,3.60944]
[1724629025567,7.21752,2771.1,2770.5,3.60944]
[1724629025864,3.60873,2771.1,2770.5,3.60944]
[1724629029826,9.10785,2771.3,2770.6,3.6093]
[1724629030003,6.60855,2771.2,2770.5,3.60944]
[1724629030316,3.0,2771.2,2770.6,5.86902]
[1724629030601,3.0,2771.2,2770.6,6.816859]
[1724629030766,3.60845,2771.3,2770.6,6.816859]
[1724629030767,7.21697,2771.3,2770.6,6.816859]
[1724629030967,3.60859,2771.2,2770.6,6.816859]
[1724629032004,7.21696,2771.3,2770.6,6.816859]
[1724629032206,3.60845,2771.3,2770.6,6.816859]
[1724629032411,6.60822,2771.5,2770.7,0.6816859]
[1724629032587,6.60837,2771.4,2770.8,3.60903]
[1724629032982,6.60837,2771.4,2770.6,5.86902]
[1724629032983,3.60841,2771.3,2770.6,5.86902]
[1724629033220,3.60856,2771.2,2770.6,5.86902]
[1724629033416,7.21694,2771.3,2770.6,5.86902]
[1724629033625,3.60841,2771.3,2770.6,5.86902]
[1724629033786,3.60841,2771.3,2770.6,6.816873]
[1724629034120,3.895747,2771.4,2770.6,2.2597]
[1724629034121,3.60895,2770.9,2770.6,2.2597]
[1724629034320,3.60895,2770.9,2770.4,2.2869]
[1724629034550,7.21798,2770.9,2770.4,2.2869]
[1724629034746,5.32258165,2771.2,2770.1,2.498]
[1724629035045,3.60941,2770.6,2770.1,2.498]
[1724629036543,3.60946,2770.5,2769.8,2.498]
[1724629036692,3.60973,2770.3,2769.7,3.61047]
[1724629036894,3.60973,2770.3,2769.7,6.469517]
[1724629037136,9.47691,2770.5,2769.7,10.079897]
[1724629037447,9.47691,2770.5,2769.8,3.61036]
[1724629038154,5.86736,2770.5,2769.8,3.61036]
[1724629038290,3.60946,2770.5,2769.8,4.6183387]
[1724629039011,3.60946,2770.5,2769.9,3.61023]
[1724629039239,6.60924,2770.7,2770.0,2.498]
[1724629040732,6.60924,2770.7,2770.0,6.1081]
[1724629041034,10.21856,2770.7,2770.0,7.18073087]
[1724629041333,3.60933,2770.6,2770.0,3.57063087]
[1724629041533,6.60924,2770.7,2769.9,3.61023]
[1724629041534,3.60948,2770.5,2769.9,3.61023]
[1724629041899,3.60948,2770.5,2769.9,3.60890571]
[1724629042108,6.60924,2770.7,2769.9,3.60890571]
[1724629042525,6.60924,2770.7,2770.0,2.4083]
[1724629042704,6.60924,2770.7,2770.0,3.01002057]
[1724629043115,11.05882,2771.0,2770.3,3.60963]
[1724629043435,11.05882,2771.0,2770.4,2.4083]
[1724629043606,3.0,2770.9,2770.4,2.4083]
[1724629044123,3.60906,2770.8,2770.4,2.4083]
[1724629046913,3.0,2770.9,2770.4,6.619671]
[1724629047130,3.0,2771.0,2770.5,3.60942]
[1724629047328,3.60873,2771.1,2770.5,3.60942]
[1724629048009,7.21751,2771.1,2770.5,3.60942]
[1724629048210,3.60873,2771.1,2770.5,4.6323431]
[1724629049342,3.60894,2770.9,2770.4,3.010101]
[1724629049639,3.60894,2770.9,2770.4,2.4083]
[1724629050017,6.0398,2770.9,2770.1,6.04459]
[1724629050218,3.60948,2770.5,2770.1,2.4347]
[1724629051064,3.60929,2770.7,2770.1,2.4347]
[1724629051222,3.609,2770.9,2770.1,7.010129]
[1724629051407,3.0,2770.8,2770.1,6.04463]
[1724629051732,3.60947,2770.5,2769.9,3.61022]
[1724629052132,3.60947,2770.5,2769.3,10.38782573]
[1724629052133,3.02368165,2770.2,2769.2,0.75315408]
[1724629052459,3.61035,2769.9,2769.1,2.4178]
[1724629052610,5.37148165,2769.9,2769.1,2.4178]
[1724629052941,0.89816017,2769.8,2768.8,2.4178]
[1724629053245,3.61077,2769.5,2768.8,2.4178]
[1724629053931,3.89816017,2769.8,2768.8,2.4178]
[1724629054274,3.61105,2769.3,2768.4,6.02995]
[1724629054409,3.61105,2769.3,2768.5,0.602995]
[1724629059609,3.61115,2769.2,2768.5,0.602995]
[1724629060234,3.61128,2769.1,2768.4,6.02995]
[1724629067135,5.90193,2769.3,2768.5,3.61206]
[1724629067355,3.61103,2769.3,2768.5,3.61206]
[1724629067516,3.61123,2769.2,2768.4,6.02995]
[1724629067717,3.61123,2769.2,2768.5,0.602995]
[1724629067923,3.61123,2769.2,2768.4,6.02995]
[1724629068715,3.61128,2769.1,2768.4,6.02995]
[1724629069218,3.61128,2769.1,2768.4,6.0299]
[1724629069626,7.22212,2769.3,2768.5,3.61196]
[1724629070227,3.61118,2769.2,2768.5,3.61196]
[1724629070427,3.61118,2769.2,2768.5,4.576146]
[1724629071164,3.61118,2769.2,2768.5,0.964186]
[1724629071341,3.61118,2769.2,2768.6,3.61192]
[1724629073474,3.61118,2769.2,2768.6,2.2969]
[1724629073947,7.22243,2769.2,2768.6,2.2969]
[1724629074150,3.61135,2769.1,2768.6,2.2969]
[1724629075864,4.333423,2769.2,2768.6,2.2969]
[1724629076076,3.61118,2769.2,2768.6,2.2969]
[1724629077475,7.22246,2769.2,2768.6,2.2969]
[1724629077973,3.61118,2769.2,2768.6,2.2969]
[1724629078178,7.22244,2769.2,2768.6,2.2969]
[1724629078942,3.61128,2769.1,2768.6,2.2969]
[1724629080651,3.6115,2769.0,2768.4,2.4978]
[1724629082149,3.6115,2769.0,2768.4,6.10997]
[1724629082377,3.6115,2769.0,2768.4,7.082199]
[1724629083272,3.6115,2769.0,2768.4,6.10997]
[1724629087886,3.61158,2768.9,2768.2,2.3688]
[1724629088083,3.61214,2768.5,2767.9,5.9816]
[1724629088292,2.3997,2768.4,2767.6,2.4173]
[1724629088472,3.66430604,2768.4,2767.6,2.4173]
[1724629088949,2.3997,2768.4,2767.9,1.26460604]
[1724629089151,2.3997,2768.4,2767.9,4.87741604]
[1724629089345,3.61212,2768.5,2767.9,4.87741604]
[1724629089548,6.61184,2768.7,2768.0,3.6127]
[1724629089766,6.61195,2768.6,2767.9,5.36515764]
[1724629089973,6.61195,2768.6,2767.9,4.1005516]